bitfinex-derivatives/quotes_SOLF0:USTF0_20250312
["timestamp","ask_amount","ask_price","bid_price","bid_amount"]
[1741788100997,7.9488,125.82,125.8,0.05373932]
[1741788101193,0.05706886,125.83,125.8,0.05373932]
[1741788101492,53.2659509,125.82,125.72,53.2659509]
[1741788101795,53.2659509,125.8,125.72,44.98]
[1741788102296,53.2659509,125.8,125.69,324.68096351]
[1741788102591,44.98,125.81,125.69,271.41501261]
[1741788102790,53.32140908,125.76,125.73,0.05896096]
[1741788103095,7.9511,125.78,125.69,32.91501261]
[1741788103298,0.05670824,125.76,125.73,0.05386061]
[1741788103598,8.00930824,125.76,125.73,0.05386061]
[1741788103794,0.05670824,125.76,125.73,0.05386061]
[1741788104099,0.05670824,125.76,125.74,7.9531]
[1741788104299,0.05670824,125.76,125.73,0.05386061]
[1741788105798,53.2659509,125.74,125.68,32.91501261]
[1741788106294,53.2659509,125.71,125.68,32.91501261]
[1741788106791,7.9565,125.7,125.68,32.91501261]
[1741788106993,53.2659509,125.71,125.68,32.91501261]
[1741788107296,57.5406041,125.71,125.67,87.77336696]
[1741788107884,0.0559532,125.71,125.67,87.77336696]
[1741788108491,7.9566,125.7,125.67,87.77336696]
[1741788108696,0.0559532,125.71,125.67,87.77336696]
[1741788108899,53.3219041,125.71,125.61,45.0]
[1741788109296,53.2659509,125.71,125.61,45.0]
[1741788109498,0.05999932,125.67,125.61,45.0]
[1741788109697,0.05999932,125.67,125.59,113.99742456]
[1741788109999,53.2659509,125.68,125.59,113.99742456]
[1741788110201,0.05134822,125.64,125.59,113.99742456]
[1741788110695,4.03214822,125.64,125.57,87.77336696]
[1741788111304,7.9612,125.62,125.58,7.9636]
[1741788111691,3.9808,125.64,125.57,87.77336696]
[1741788111891,0.05677349,125.61,125.57,87.77336696]
[1741788113097,0.05677349,125.61,125.51,326.43336696]
[1741788113297,0.05677349,125.61,125.53,45.0]
[1741788113497,7.9616,125.62,125.57,7.9639]
[1741788113699,0.05519592,125.58,125.53,45.0]
[1741788113903,3.9808,125.64,125.53,45.0]
[1741788114101,0.05594094,125.57,125.53,45.0]
[1741788114403,0.05254527,125.56,125.53,45.0]
[1741788114601,7.9615,125.62,125.58,7.9632]
[1741788114904,0.05189694,125.56,125.53,45.0]
[1741788115099,3.9808,125.64,125.53,45.0]
[1741788115301,4.463e-05,125.56,125.53,52.96]
[1741788115604,3.9808,125.64,125.55,53.2659509]
[1741788115803,7.9609,125.63,125.55,53.2659509]
[1741788115996,3.9808,125.64,125.55,53.2659509]
[1741788116400,0.0548965,125.61,125.58,0.05267032]
[1741788117201,8.0167965,125.61,125.58,0.05267032]
[1741788117404,0.0548965,125.61,125.58,0.05267032]
[1741788118405,7.9628,125.6,125.58,0.05267032]
[1741788118605,0.0548965,125.61,125.58,0.05267032]
[1741788120304,0.0548965,125.61,125.6,7.9624]
[1741788120709,8.0416,125.69,125.58,45.07267032]
[1741788120906,8.0416,125.69,125.61,53.2659509]
[1741788121101,8.0416,125.69,125.59,292.0659509]
[1741788121307,98.2859509,125.68,125.59,238.8]
[1741788121611,53.2659509,125.66,125.59,238.8]
[1741788121802,98.2859509,125.68,125.59,238.8]
[1741788122007,0.05769637,125.64,125.61,0.05790545]
[1741788122398,0.05769637,125.64,125.63,7.9605]
[1741788122812,4.0164,125.7,125.62,45.02]
[1741788123108,45.02,125.74,125.63,53.2659509]
[1741788123299,45.02,125.74,125.63,61.5285509]
[1741788123505,7.9542,125.73,125.66,53.2659509]
[1741788123811,238.82,125.83,125.67,238.82]
[1741788124009,4.2219,125.8,125.69,53.2659509]
[1741788124310,0.05452061,125.76,125.74,53.2659509]
[1741788124608,53.2659509,125.85,125.74,53.2659509]
[1741788124609,45.02,125.85,125.74,53.2659509]
[1741788125212,12.5317,125.87,125.77,53.2659509]
[1741788125412,12.5317,125.87,125.78,45.02]
[1741788125710,8.00506278,125.83,125.81,0.05841259]
[1741788125908,0.05706278,125.83,125.81,0.05841259]
[1741788127411,7.9484,125.82,125.81,0.05841259]
[1741788127613,0.05706278,125.83,125.75,283.82]
[1741788127914,53.2659509,125.78,125.71,126.1674399]
[1741788128115,98.2659509,125.78,125.71,126.1674399]
[1741788128317,7.9546,125.73,125.71,126.1674399]
[1741788128516,53.2659509,125.75,125.71,126.1674399]
[1741788128715,44.98,125.74,125.71,126.1674399]
[1741788128918,7.9548,125.72,125.71,126.22193097]
[1741788129115,7.9548,125.72,125.71,0.05449107]
[1741788129414,7.9548,125.72,125.64,87.77336696]
[1741788129415,7.958,125.67,125.64,87.77336696]
[1741788129615,53.2659509,125.72,125.64,87.77336696]
[1741788130511,7.9553,125.72,125.64,87.77336696]
[1741788130713,0.05395382,125.69,125.67,0.05781327]
[1741788131114,44.98,125.74,125.67,0.05781327]
[1741788131315,0.0547153,125.69,125.67,0.05781327]
[1741788131510,7.9548,125.72,125.67,0.05781327]
[1741788131822,0.06021247,125.69,125.67,0.05781327]
[1741788132321,0.05163091,125.69,125.67,0.05781327]
[1741788133108,0.05163091,125.69,125.67,8.01571327]
[1741788133311,0.05163091,125.69,125.67,0.05781327]
[1741788134120,7.9531,125.75,125.69,7.9562]
[1741788134316,7.9531,125.75,125.66,53.2659509]
[1741788134517,44.98,125.76,125.66,53.2659509]
[1741788134820,61.4819509,125.77,125.66,53.2659509]
[1741788135017,61.4819509,125.77,125.65,44.98]
[1741788135318,0.05037108,125.73,125.7,0.0578019]
[1741788138732,0.05037108,125.73,125.72,7.9548]
[1741788138924,0.05037108,125.73,125.7,0.0578019]
[1741788140018,0.05037108,125.73,125.71,7.955]
[1741788140324,0.05037108,125.73,125.7,0.0578019]
[1741788143225,0.05037108,125.73,125.72,7.9548]
[1741788143523,0.05037108,125.73,125.7,0.0578019]
[1741788146027,8.00487108,125.73,125.7,0.0578019]
[1741788146223,0.05037108,125.73,125.7,0.0578019]
[1741788146627,0.05037108,125.73,125.72,7.9548]
[1741788146826,0.05037108,125.73,125.7,0.0578019]
[1741788147026,0.05037108,125.73,125.72,7.9548]
[1741788147422,0.05037108,125.73,125.7,0.0578019]
[1741788148026,0.05037108,125.73,125.71,7.955]
[1741788148223,0.05037108,125.73,125.7,0.0578019]
[1741788148523,0.05037108,125.73,125.72,7.9548]
[1741788148729,0.05037108,125.73,125.7,0.0578019]
[1741788149820,0.05037108,125.73,125.72,7.9548]
[1741788151129,0.05037108,125.73,125.7,0.0578019]
[1741788151431,0.05037108,125.73,125.72,7.9548]
[1741788151630,44.96,125.79,125.7,0.0578019]
[1741788151831,44.96,125.79,125.7,44.94]
[1741788152030,11.9635,125.8,125.7,44.94]
[1741788152327,8.6358,125.81,125.71,36.90865582]
[1741788152530,7.9511,125.78,125.71,36.90865582]
[1741788152727,8.6358,125.81,125.71,36.90865582]
[1741788152928,0.05530766,125.76,125.75,7.9529]
[1741788153122,53.5758,125.81,125.71,36.90865582]
[1741788153328,0.06044117,125.77,125.74,0.05809158]
[1741788153935,45.00044117,125.77,125.74,0.05809158]
[1741788154132,0.06044117,125.77,125.74,0.05809158]
[1741788154627,7.9529,125.75,125.74,0.05809158]
[1741788154822,0.06044117,125.77,125.74,0.05809158]
[1741788155329,7.9529,125.75,125.74,0.05809158]
[1741788155536,77.73505582,125.76,125.69,238.66]
[1741788156430,32.79505582,125.74,125.68,32.77457445]
[1741788156630,8.0509,125.73,125.68,32.77457445]
[1741788156830,7.9557,125.71,125.7,0.05945167]
[1741788157426,0.0540459,125.72,125.7,0.05945167]
[1741788160339,49.3172,125.78,125.7,0.05945167]
[1741788160542,49.3172,125.78,125.68,53.29207577]
[1741788160741,7.9526,125.76,125.67,44.94]
[1741788161142,49.3172,125.78,125.68,126.96325505]
[1741788161338,0.06026834,125.73,125.7,0.05103283]
[1741788161639,0.06026834,125.73,125.68,126.96325505]
[1741788161841,23.85,125.69,125.29,7.952]
[1741788162035,53.29207577,125.55,125.39,4.2402]
[1741788162239,53.29207577,125.57,125.47,8.2673]
[1741788162439,53.29207577,125.54,125.47,8.2673]
[1741788162737,53.29207577,125.48,125.45,545.2808546]
[1741788162939,98.91207577,125.48,125.45,243.30978501]
[1741788163337,53.29207577,125.46,125.45,222.037279]
[1741788163542,45.54,125.46,125.45,52.75593458]
[1741788163743,57.81129151,125.46,125.39,245.04913271]
[1741788163937,53.29207577,125.44,125.39,245.04913271]
[1741788164742,53.29207577,125.52,125.4,0.0603379]
[1741788164743,0.06098633,125.43,125.4,0.0603379]
[1741788165238,0.05213229,125.43,125.4,0.05280882]
[1741788165538,53.29207577,125.52,125.4,8.03280882]
[1741788165738,98.61207577,125.52,125.4,8.02730882]
[1741788165938,98.61207577,125.52,125.4,7.9745]
[1741788166136,53.29207577,125.49,125.39,343.66120848]
[1741788166340,53.29207577,125.49,125.39,290.36913271]
[1741788166539,0.05770652,125.45,125.43,0.05539107]
[1741788168245,823.29870292,125.44,125.43,0.05539107]
[1741788168443,823.29870292,125.44,125.41,44.96921786]
[1741788168838,823.29870292,125.44,125.39,238.64]
[1741788169039,876.59077869,125.44,125.39,238.64]
[1741788169644,876.59077869,125.44,125.4,0.05345877]
[1741788169937,876.59077869,125.44,125.18,193.0]
[1741788170142,53.29207577,125.41,125.29,61.56287577]
[1741788170343,823.29870292,125.44,125.32,53.29207577]
[1741788170544,823.29870292,125.44,125.34,7.9783]
[1741788170841,823.29870292,125.44,125.33,45.1]
[1741788171143,0.05117066,125.4,125.37,0.03533672]
[1741788171338,0.05117066,125.4,125.38,239.04]
[1741788171739,123.28234075,125.39,125.38,239.04]
[1741788172145,123.28234075,125.39,125.38,238.80069876]
[1741788172439,116.69184075,125.39,125.38,238.80069876]
[1741788173142,110.10154075,125.39,125.38,238.80069876]
[1741788173743,155.75921406,125.43,125.38,300.07277453]
[1741788174044,39.99461406,125.43,125.41,53.29207577]
[1741788174243,39.99461406,125.43,125.39,45.1]
[1741788174642,39.99461406,125.43,125.41,7.9739]
[1741788174843,39.99461406,125.43,125.4,53.29207577]
[1741788175043,0.05998116,125.42,125.4,0.05265165]
[1741788176645,53.35205693,125.42,125.38,136.12959876]
[1741788176843,53.35205693,125.42,125.32,284.7]
[1741788177150,53.29207577,125.42,125.32,239.12]
[1741788177545,53.29207577,125.42,125.32,247.1001]
[1741788177755,0.05617794,125.38,125.36,0.03385574]
[1741788178243,0.05617794,125.38,125.32,239.12]
[1741788180752,53.29207577,125.36,125.32,239.12]
[1741788180945,61.27017577,125.36,125.26,239.2]
[1741788181149,45.56,125.37,125.27,53.29207577]
[1741788181349,0.05192201,125.32,125.28,45.52]
[1741788181740,45.56,125.36,125.26,247.1838]
[1741788181946,0.05206347,125.31,125.26,239.2]
[1741788182149,0.23947793,125.28,125.26,239.2]
[1741788182751,0.29624585,125.28,125.26,239.2]
[1741788183152,0.29624585,125.28,125.26,284.7]
[1741788183351,4.3862,125.35,125.3,7.9812]
[1741788183547,4.3862,125.35,125.26,284.7]
[1741788183749,53.29207577,125.31,125.26,239.2]
[1741788183956,53.29207577,125.29,125.18,239.26]
[1741788184250,4.1576,125.28,125.18,239.26]
[1741788184444,0.05942232,125.25,125.22,0.05837101]
[1741788184647,45.57942232,125.25,125.22,0.05837101]
[1741788184846,0.05942232,125.25,125.22,0.05837101]
[1741788186546,53.35149809,125.25,125.18,239.26]
[1741788186752,61.27857577,125.23,125.18,239.26]
[1741788187062,53.29207577,125.19,125.12,2.28108746]
[1741788187359,45.6,125.18,125.12,2.28108746]
[1741788187953,0.05975541,125.16,125.12,2.28108746]
[1741788189055,0.05975541,125.16,125.12,55.57316323]
[1741788190155,45.56,125.27,125.14,53.29207577]
[1741788190352,57.24587577,125.27,125.15,45.56]
[1741788190552,53.29207577,125.25,125.15,45.56]
[1741788190752,53.29207577,125.23,125.12,55.57316323]
[1741788190947,53.29207577,125.21,125.12,2.28108746]
[1741788191148,49.955,125.2,125.12,2.28108746]
[1741788191353,0.05063656,125.18,125.12,2.28108746]
[1741788191563,53.29207577,125.15,125.04,239.52]
[1741788191862,53.29207577,125.13,125.04,239.52]
[1741788192056,0.23994721,125.04,124.99,53.29207577]
[1741788192650,0.23994721,125.04,124.92,53.29207577]
[1741788192651,46.09500409,125.03,124.97,8.002]
[1741788192852,0.05500409,125.03,124.92,53.29207577]
[1741788193049,0.23994721,125.04,125.0,53.29207577]
[1741788193249,0.23994721,125.04,125.03,61.29077577]
[1741788193457,4.355,125.12,125.03,292.81207577]
[1741788193655,0.05788812,125.05,125.03,292.81207577]
[1741788193855,3.975,125.15,125.03,292.81207577]
[1741788194158,53.29207577,125.12,125.03,239.52]
[1741788194353,46.16,125.11,125.03,239.52]
[1741788194559,3.975,125.15,125.03,292.81207577]
[1741788194758,3.975,125.15,125.06,53.29207577]
[1741788197169,53.29207577,125.08,124.97,297.16427577]
[1741788197465,53.29207577,125.05,124.97,239.64]
[1741788197856,0.05495116,125.04,124.97,285.92]
[1741788198562,0.05495116,125.04,124.97,285.98]
[1741788198971,0.05495116,125.04,124.97,239.64]
[1741788199176,0.05495116,125.04,124.97,292.93207577]
[1741788199983,0.05495116,125.04,124.97,239.64]
[1741788200674,0.05495116,125.04,124.99,53.29207577]
[1741788201370,8.6431,125.15,125.02,53.29207577]
[1741788201570,8.6431,125.15,125.05,53.29207577]
[1741788201772,12.739,125.15,125.06,239.78]
[1741788202573,0.05354432,125.12,125.09,0.05818623]
[1741788203780,4.0959,125.15,125.09,0.05818623]
[1741788204877,0.06076466,125.13,125.09,0.05818623]
[1741788205278,53.29207577,125.12,125.09,0.05818623]
[1741788205474,0.06076466,125.13,125.09,0.05818623]
[1741788205682,8.05316466,125.13,125.09,0.05818623]
[1741788205874,0.06076466,125.13,125.09,0.05818623]
[1741788206880,48.22,125.12,125.09,0.05818623]
[1741788207079,48.22,125.12,125.02,53.29207577]
[1741788207278,48.22,125.12,125.03,8.3367]
[1741788207483,53.29207577,125.11,125.03,8.3367]
[1741788207679,7.9962,125.07,125.0,244.2139]
[1741788207981,48.22,125.12,125.0,244.2139]
[1741788208180,0.05099065,125.05,125.02,0.05354432]
[1741788208381,48.22,125.12,125.0,244.2139]
[1741788208577,0.05523469,125.05,125.02,0.05354432]
[1741788208776,7.9957,125.08,125.0,244.2139]
[1741788208973,101.51207577,125.08,125.02,0.05354432]
[1741788209176,53.34253214,125.05,125.02,0.05354432]
[1741788209383,53.34253214,125.05,125.0,239.84]
[1741788209790,7.9995,125.02,125.0,239.84]
[1741788209987,53.34253214,125.05,125.0,239.84]
[1741788210189,53.29207577,125.05,125.0,239.84]
[1741788210483,61.87627577,125.07,125.0,239.84]
[1741788210678,0.05055086,125.04,125.0,239.84]
[1741788210884,8.04905086,125.04,125.0,239.84]
[1741788211078,0.05055086,125.04,125.0,239.84]
[1741788211477,0.05055086,125.04,125.0,247.8402]
[1741788211784,0.05055086,125.04,125.0,239.84]
[1741788212178,0.05055086,125.04,125.0,239.5999712]
[1741788212383,8.04885086,125.04,125.0,247.6000712]
[1741788212592,0.05055086,125.04,125.0,247.6000712]
[1741788212887,0.05055086,125.04,125.0,239.5999712]
[1741788213486,0.05055086,125.04,125.01,7.9994]
[1741788213683,0.05055086,125.04,125.0,239.5999712]
[1741788215690,0.05055086,125.04,125.03,7.9987]
[1741788216081,53.29207577,125.12,125.01,102.05207577]
[1741788216288,53.29207577,125.12,125.06,7.9964]
[1741788216497,53.29207577,125.12,125.02,8.5424]
[1741788216688,7.9938,125.11,125.02,8.5424]
[1741788216892,61.90067577,125.13,125.02,8.5424]
[1741788217086,8.6086,125.13,125.02,8.5424]
[1741788217393,0.05333565,125.09,125.06,0.05055086]
[1741788217590,102.11207577,125.16,125.06,48.87055086]
[1741788217794,7.992,125.14,125.1,7.994]
[1741788217985,102.11207577,125.16,125.06,48.82]
[1741788218184,53.29207577,125.16,125.06,48.82]
[1741788218788,53.29207577,125.24,125.13,53.29207577]
[1741788219088,53.29207577,125.24,125.14,288.48]
[1741788219288,0.0532209,125.2,125.17,0.05114994]
[1741788220192,8.0583,125.25,125.18,48.58]
[1741788220697,16.043,125.25,125.18,56.5688]
[1741788220894,8.0583,125.25,125.15,48.48]
[1741788221089,7.9854,125.24,125.17,7.9893]
[1741788221298,7.9854,125.24,125.15,48.48]
[1741788221601,0.05726425,125.22,125.19,0.05341512]
[1741788223689,53.29207577,125.21,125.14,239.9]
[1741788223887,7.9889,125.19,125.14,239.9]
[1741788224093,53.29207577,125.21,125.14,239.9]
[1741788224289,48.24,125.22,125.14,239.9]
[1741788224588,57.56800152,125.21,125.14,239.9]
[1741788224800,53.29207577,125.21,125.14,239.9]
[1741788224999,0.05953165,125.19,125.16,0.05855436]
[1741788225503,8.04843165,125.19,125.16,0.05855436]
[1741788225700,0.05953165,125.19,125.16,0.05855436]
[1741788226596,8.04853165,125.19,125.16,0.05855436]
[1741788226798,0.05953165,125.19,125.16,0.05855436]
[1741788227801,7.9897,125.17,125.16,0.05855436]
[1741788228596,7.991,125.15,125.14,239.9]
[1741788229098,53.29207577,125.17,125.09,4.3133]
[1741788229400,53.29207577,125.15,125.08,239.76]
[1741788229599,4.29558222,125.14,125.08,239.76]
[1741788229794,57.64017939,125.13,125.1,0.04513793]
[1741788229992,4.29558222,125.12,125.1,0.04513793]
[1741788230193,7.9936,125.11,125.1,0.04513793]
[1741788230403,12.29023356,125.11,125.1,0.04513793]
[1741788230695,4.29663356,125.11,125.1,0.04513793]
[1741788230897,0.0525214,125.13,125.1,0.04513793]
[1741788231199,4.29632788,125.12,125.1,0.04513793]
[1741788231402,7.9936,125.11,125.1,0.04513793]
[1741788231600,12.28992788,125.11,125.1,0.04513793]
[1741788232104,4.29632788,125.11,125.1,0.04513793]
[1741788232295,0.0525214,125.13,125.1,0.04513793]
[1741788232791,8.178,125.2,125.1,0.04513793]
[1741788232996,8.178,125.2,125.09,47.28]
[1741788233294,1.39055382,125.25,125.11,53.29207577]
[1741788233604,134.41570684,125.4,125.28,7.9826]
[1741788233792,81.12363107,125.4,125.29,287.56]
[1741788234001,4.30481739,125.39,125.33,0.0562543]
[1741788234199,81.12363107,125.4,125.35,61.27027577]
[1741788234398,81.12363107,125.4,125.35,53.29207577]
[1741788234800,48.51743107,125.4,125.38,53.29207577]
[1741788235098,83.30056942,125.41,125.39,287.69445193]
[1741788235292,254.2629167,125.43,125.39,295.67445193]
[1741788235498,333.76974443,125.44,125.42,53.29207577]
[1741788235802,268.12733292,125.45,125.44,7.9725]
[1741788236104,227.50253292,125.45,125.44,56.1925]
[1741788236408,102.23115272,125.45,125.44,117.46457577]
[1741788236602,3.9956,125.54,125.44,109.49207577]
[1741788236796,0.05576378,125.46,125.45,7.9719]
[1741788236997,4.2219,125.57,125.44,109.49207577]
[1741788237194,4.2219,125.57,125.44,101.51207577]
[1741788237394,4.2219,125.57,125.48,53.29207577]
[1741788237701,52.3619,125.57,125.47,239.58]
[1741788238004,53.29207577,125.53,125.45,48.14]
[1741788238300,53.29207577,125.5,125.41,7.9739]
[1741788238503,53.29207577,125.47,125.37,239.58]
[1741788239398,53.01012155,125.47,125.4,7.975]
[1741788239598,0.06089482,125.43,125.41,0.0578511]
[1741788240195,0.06089482,125.43,125.42,85.82824903]
[1741788240401,53.29207577,125.48,125.42,85.82824903]
[1741788241102,53.29207577,125.48,125.38,8.01054873]
[1741788241302,53.29207577,125.45,125.38,8.01054873]
[1741788241610,0.06127202,125.44,125.42,0.06102125]
[1741788242108,0.06127202,125.44,125.38,8.01054873]
[1741788242296,0.06127202,125.44,125.37,239.58]
[1741788243108,0.06127202,125.44,125.39,0.05451381]
[1741788243505,0.06127202,125.44,125.4,100.91207577]
[1741788243805,0.00926882,125.44,125.43,7.9732]
[1741788244007,0.00926882,125.44,125.4,47.62]
[1741788244202,0.00926882,125.44,125.43,7.9732]
[1741788245006,100.81207577,125.52,125.42,0.05792344]
[1741788245507,100.81207577,125.52,125.4,100.91207577]
[1741788245805,53.29207577,125.52,125.41,7.33570579]
[1741788246006,47.4,125.54,125.43,53.29207577]
[1741788246197,0.05766285,125.48,125.45,0.06131171]
[1741788246402,0.05766285,125.48,125.45,239.38131171]
[1741788246600,8.4549,125.57,125.46,53.29207577]
[1741788246804,5.39e-05,125.48,125.47,7.9706]
[1741788247001,100.65207577,125.53,125.45,239.32]
[1741788247305,108.61937577,125.53,125.45,247.2914]
[1741788247497,53.29207577,125.5,125.45,239.32]
[1741788247701,47.28,125.49,125.44,32.17443427]
[1741788247903,53.29207577,125.47,125.44,32.17443427]
[1741788248103,53.29207577,125.47,125.46,0.05658555]
[1741788248309,61.27207577,125.47,125.44,32.17443427]
[1741788248607,53.29207577,125.47,125.43,85.82824903]
[1741788248803,7.9714,125.46,125.43,85.82824903]
[1741788249002,53.29207577,125.44,125.43,79.25064903]
[1741788249202,53.29207577,125.44,125.41,73.54473398]
[1741788249203,100.51207577,125.44,125.41,73.54473398]
[1741788249507,100.51207577,125.44,125.42,0.0551368]
[1741788249707,108.49207577,125.44,125.41,73.54473398]
[1741788249902,61.27207577,125.44,125.35,29.41789359]
[1741788250107,53.29207577,125.41,125.35,29.41789359]
[1741788250407,61.26667577,125.41,125.35,29.41789359]
[1741788250607,47.1,125.43,125.35,29.41789359]
[1741788250808,100.39207577,125.43,125.35,29.41789359]
[1741788251110,100.39207577,125.43,125.33,239.28]
[1741788251305,0.05342153,125.4,125.38,0.06104368]
[1741788252614,47.06,125.47,125.41,7.9744]
[1741788252811,47.4,125.5,125.39,57.40527577]
[1741788253111,47.4,125.53,125.47,7.9702]
[1741788253311,100.75207577,125.58,125.46,53.29207577]
[1741788253515,100.75207577,125.58,125.47,4.3087]
[1741788253813,0.05940584,125.53,125.51,0.06103759]
[1741788254208,0.05255664,125.53,125.51,0.06103759]
[1741788255608,4.3806,125.62,125.52,292.51207577]
[1741788255809,7.96,125.64,125.54,53.29207577]
[1741788256112,4.2151,125.65,125.55,47.88]
[1741788256304,7.9609,125.63,125.55,47.88]
[1741788256614,4.2151,125.65,125.55,101.17207577]
[1741788256813,0.05887189,125.6,125.58,0.06032165]
[1741788257110,105.38267577,125.69,125.58,0.06032165]
[1741788257308,7.9574,125.68,125.59,47.9]
[1741788257513,53.29207577,125.7,125.59,287.12]
[1741788257713,4.0017,125.67,125.59,287.12]
[1741788257910,57.29377577,125.67,125.59,239.22]
[1741788258108,53.29207577,125.64,125.59,239.22]
[1741788258309,101.09179019,125.64,125.52,53.29207577]
[1741788258508,101.09179019,125.64,125.5,239.12]
[1741788258818,53.29207577,125.6,125.5,239.12]
[1741788259006,7.9643,125.57,125.5,239.12]
[1741788259208,4.3763,125.59,125.5,239.12]
[1741788259518,0.05374156,125.55,125.52,0.05208787]
[1741788259711,53.29207577,125.64,125.54,53.29207577]
[1741788259913,4.3763,125.68,125.56,53.29207577]
[1741788260114,4.3763,125.68,125.57,47.86]
[1741788260314,4.3763,125.68,125.58,292.37207577]
[1741788260811,53.29207577,125.65,125.58,239.08]
[1741788261017,53.29207577,125.65,125.53,52.096]
[1741788261018,47.83724575,125.64,125.62,1.905e-05]
[1741788261316,7.961,125.63,125.62,1.905e-05]
[1741788261506,53.29207577,125.63,125.54,3.9468]
[1741788261813,7.9635,125.59,125.54,3.9468]
[1741788262111,53.29207577,125.63,125.55,0.05725345]
[1741788262316,0.05724001,125.58,125.54,3.9468]
[1741788262516,0.05724001,125.58,125.54,105.41887577]
[1741788262819,53.29207577,125.76,125.58,0.053831]
[1741788263111,53.29207577,125.76,125.61,53.29207577]
[1741788263112,4.3432,125.72,125.61,53.29207577]
[1741788263322,53.29207577,125.7,125.62,4.0504]
[1741788263509,53.29207577,125.67,125.59,239.08]
[1741788263709,101.29207577,125.67,125.57,4.0504]
[1741788263911,53.34759274,125.64,125.62,0.0542822]
[1741788264109,7.9605,125.63,125.62,0.0542822]
[1741788264913,7.9605,125.63,125.62,8.22e-05]
[1741788265315,15.9205,125.63,125.62,8.22e-05]
[1741788265618,12.1314,125.63,125.62,8.22e-05]
[1741788266007,59.9514,125.63,125.62,8.22e-05]
[1741788266211,67.9114,125.63,125.62,8.22e-05]
[1741788266912,7.9662,125.54,125.53,239.04]
[1741788267114,100.99207577,125.59,125.48,51.8728]
[1741788267412,7.967,125.53,125.48,4.1728]
[1741788267615,100.99207577,125.59,125.48,4.1728]
[1741788267810,7.9664,125.54,125.48,4.1728]
[1741788268017,0.05743687,125.55,125.52,0.0606391]
[1741788268210,100.99207577,125.59,125.52,0.0606391]
[1741788268414,0.05033112,125.55,125.52,0.0606391]
[1741788269313,47.86,125.62,125.54,53.29207577]
[1741788269507,101.19207577,125.67,125.56,53.29207577]
[1741788269705,101.19207577,125.67,125.55,291.1737]
[1741788269706,210.907,125.75,125.55,291.1737]
[1741788269914,7.9596,125.65,125.6,7.962]
[1741788270218,7.9596,125.65,125.59,101.35207577]
[1741788270410,10.22426833,125.67,125.59,101.35207577]
[1741788270606,0.05135134,125.63,125.61,0.05116589]
[1741788271012,7.9614,125.62,125.61,0.05116589]
[1741788271318,0.05135134,125.63,125.61,0.05116589]
[1741788272718,10.22426833,125.67,125.61,53.34324166]
[1741788272907,10.22426833,125.67,125.62,12.2652]
[1741788273112,10.22426833,125.67,125.62,52.5045]
[1741788273514,48.2,125.72,125.62,60.4654]
[1741788273720,0.06054292,125.66,125.62,52.5045]
[1741788274215,0.06054292,125.66,125.63,238.99620144]
[1741788274615,7.9598,125.64,125.63,238.99620144]
[1741788274821,7.9598,125.64,125.62,4.3045]
[1741788274822,0.06054292,125.66,125.57,238.94]
[1741788275116,48.32,125.7,125.59,53.29207577]
[1741788275320,48.32,125.7,125.61,53.29207577]
[1741788275521,48.32,125.7,125.61,61.25357577]
[1741788275722,48.32,125.7,125.59,53.29207577]
[1741788276015,0.05645901,125.66,125.63,8.01759049]
[1741788276322,0.05645901,125.66,125.63,0.05739049]
[1741788276718,48.43645901,125.66,125.63,0.05739049]
[1741788276911,7.9598,125.64,125.63,0.05739049]
[1741788277622,48.43645901,125.66,125.63,0.05739049]
[1741788278118,7.9598,125.64,125.63,0.05739049]
[1741788278819,0.05645901,125.66,125.63,0.05739049]
[1741788279716,0.05645901,125.66,125.64,7.9597]
[1741788279916,0.05645901,125.66,125.63,0.05739049]
[1741788280931,8.7083,125.73,125.64,53.29207577]
[1741788281223,4.28461355,125.72,125.65,238.88]
[1741788282024,7.9573,125.68,125.67,0.06122072]
[1741788283116,7.9573,125.68,125.56,4.0258]
[1741788283321,53.29207577,125.7,125.59,242.8952]
[1741788283530,4.28060884,125.69,125.59,242.8952]
[1741788283917,53.29207577,125.7,125.59,242.8952]
[1741788284121,4.2796181,125.69,125.59,242.8952]
[1741788284320,0.05482343,125.66,125.63,0.05288423]
[1741788286227,48.52,125.72,125.66,7.9583]
[1741788286430,48.52,125.72,125.63,53.29207577]
[1741788286826,7.9564,125.7,125.63,53.29207577]
[1741788287126,48.52,125.72,125.63,53.29207577]